[Event "Early-Titled-Tuesday-Blitz-October-24-2023"]
[Site "Chess.com"]
[Date "2023.10.24"]
[Round "9"]
[White "fen_fire"]
[Black "Chessmissile07"]
[Result "0-1"]
[WhiteElo "2541"]
[BlackElo "2888"]
[TimeControl "180+1"]
[EndTime "9:43:09 PDT"]
[Termination "Chessmissile07 won on time"]

1. d4 {[%clk 0:02:30.7]} 1... g6 {[%clk 0:02:58]} 2. Nf3 {[%clk 0:02:11.3]} 2...
Bg7 {[%clk 0:02:56.2]} 3. Nc3 {[%clk 0:02:10.6]} 3... a6 {[%clk 0:02:55.3]} 4.
a4 {[%clk 0:02:01.9]} 4... d6 {[%clk 0:02:54.4]} 5. a5 {[%clk 0:01:59.8]} 5...
Nf6 {[%clk 0:02:54.4]} 6. e4 {[%clk 0:01:56.9]} 6... O-O {[%clk 0:02:54.2]} 7.
Be2 {[%clk 0:01:55.2]} 7... Bg4 {[%clk 0:02:22.9]} 8. O-O {[%clk 0:01:54.7]}
8... Nc6 {[%clk 0:02:22.4]} 9. Be3 {[%clk 0:01:53.8]} 9... e5 {[%clk 0:02:18.2]}
10. d5 {[%clk 0:01:50]} 10... Bxf3 {[%clk 0:02:14.6]} 11. Bxf3 {[%clk
0:01:50.9]} 11... Nd4 {[%clk 0:02:14.7]} 12. Bxd4 {[%clk 0:01:50.7]} 12... exd4
{[%clk 0:02:15.6]} 13. Qxd4 {[%clk 0:01:50.9]} 13... Nd7 {[%clk 0:02:15.5]} 14.
Qb4 {[%clk 0:01:48.3]} 14... Rb8 {[%clk 0:02:12.8]} 15. Be2 {[%clk 0:01:44.6]}
15... Re8 {[%clk 0:02:08.5]} 16. Rfe1 {[%clk 0:01:43]} 16... Nc5 {[%clk
0:02:08.3]} 17. Bf1 {[%clk 0:01:41.8]} 17... Qd7 {[%clk 0:02:05.8]} 18. Na4
{[%clk 0:01:35.9]} 18... Nxa4 {[%clk 0:02:00.8]} 19. Qxa4 {[%clk 0:01:24]} 19...
Qxa4 {[%clk 0:02:00.2]} 20. Rxa4 {[%clk 0:01:24.9]} 20... Bxb2 {[%clk
0:02:00.5]} 21. Rc4 {[%clk 0:01:22.7]} 21... Ba3 {[%clk 0:01:50.7]} 22. Rxc7
{[%clk 0:01:15.6]} 22... Bb4 {[%clk 0:01:50.8]} 23. Rb1 {[%clk 0:01:11.9]} 23...
Rxe4 {[%clk 0:01:47.9]} 24. Rc4 {[%clk 0:01:10.8]} 24... Rxc4 {[%clk 0:01:45.3]}
25. Bxc4 {[%clk 0:01:11.7]} 25... Bxa5 {[%clk 0:01:44.9]} 26. Bxa6 {[%clk
0:01:12.3]} 26... b6 {[%clk 0:01:43.8]} 27. Bb5 {[%clk 0:01:09.6]} 27... Rc8
{[%clk 0:01:41.8]} 28. Bc6 {[%clk 0:01:09.4]} 28... Rc7 {[%clk 0:01:41.6]} 29.
Kf1 {[%clk 0:01:06]} 29... Re7 {[%clk 0:01:42]} 30. f3 {[%clk 0:00:45.4]} 30...
Kg7 {[%clk 0:01:41.7]} 31. Kf2 {[%clk 0:00:43.9]} 31... g5 {[%clk 0:01:41.1]}
32. Rb3 {[%clk 0:00:42.8]} 32... Bd2 {[%clk 0:01:30.1]} 33. Rd3 {[%clk
0:00:39.8]} 33... Bc1 {[%clk 0:01:29.3]} 34. Rd1 {[%clk 0:00:37.3]} 34... Be3+
{[%clk 0:01:25.4]} 35. Kf1 {[%clk 0:00:36.7]} 35... Bf4 {[%clk 0:01:24.2]} 36.
g3 {[%clk 0:00:35.9]} 36... Be5 {[%clk 0:01:24.4]} 37. Rb1 {[%clk 0:00:34.4]}
37... Bd4 {[%clk 0:01:22.3]} 38. c3 {[%clk 0:00:32.7]} 38... Bxc3 {[%clk
0:01:11.7]} 39. Rxb6 {[%clk 0:00:32.4]} 39... Re3 {[%clk 0:01:12.2]} 40. Rb3
{[%clk 0:00:27.4]} 40... Rxf3+ {[%clk 0:01:08.1]} 41. Ke2 {[%clk 0:00:27.4]}
41... g4 {[%clk 0:01:04.3]} 42. Bd7 {[%clk 0:00:26.9]} 42... h5 {[%clk
0:00:59.2]} 43. Bb5 {[%clk 0:00:09.2]} 43... Kf6 {[%clk 0:00:56.7]} 44. Be8
{[%clk 0:00:08.9]} 44... Ke5 {[%clk 0:00:53.9]} 45. Bxf7 {[%clk 0:00:08.8]}
45... Rxf7 {[%clk 0:00:50.6]} 46. Rxc3 {[%clk 0:00:09.5]} 46... Kxd5 {[%clk
0:00:50.3]} 47. Ra3 {[%clk 0:00:10.4]} 47... Rf5 {[%clk 0:00:46.7]} 48. Ra4
{[%clk 0:00:07]} 48... Ke5 {[%clk 0:00:46.5]} 49. Ra8 {[%clk 0:00:06.4]} 49...
d5 {[%clk 0:00:46]} 50. Ra4 {[%clk 0:00:06]} 50... Rf7 {[%clk 0:00:41.4]} 51.
Ra8 {[%clk 0:00:05.9]} 51... Rb7 {[%clk 0:00:41.5]} 52. Ra2 {[%clk 0:00:04.2]}
52... Ke4 {[%clk 0:00:41.2]} 53. Rc2 {[%clk 0:00:03.3]} 53... d4 {[%clk
0:00:41.3]} 54. Ra2 {[%clk 0:00:03.5]} 54... Rb5 {[%clk 0:00:35.8]} 55. Rd2
{[%clk 0:00:02.9]} 55... Rb1 {[%clk 0:00:29.9]} 56. Ra2 {[%clk 0:00:02]} 56...
Rh1 {[%clk 0:00:30.2]} 0-1

[Event "Early-Titled-Tuesday-Blitz-October-24-2023"]
[Site "Chess.com"]
[Date "2023.10.24"]
[Round "9"]
[White "Verony64"]
[Black "Nf3c5"]
[Result "0-1"]
[WhiteElo "2177"]
[BlackElo "2584"]
[TimeControl "180+1"]
[EndTime "9:43:09 PDT"]
[Termination "Nf3c5 won by checkmate"]

1. e4 {[%clk 0:03:00.9]} 1... c5 {[%clk 0:02:58.9]} 2. Nc3 {[%clk 0:03:00.2]}
2... Nc6 {[%clk 0:02:57.7]} 3. d3 {[%clk 0:03:00.4]} 3... e6 {[%clk 0:02:56.5]}
4. g3 {[%clk 0:03:00.5]} 4... d5 {[%clk 0:02:49.8]} 5. Bg2 {[%clk 0:02:58.4]}
5... dxe4 {[%clk 0:02:18.6]} 6. Nxe4 {[%clk 0:02:56.7]} 6... Nge7 {[%clk
0:02:14.4]} 7. f4 {[%clk 0:02:53]} 7... Nf5 {[%clk 0:02:13.4]} 8. Nf3 {[%clk
0:02:52.5]} 8... b6 {[%clk 0:02:07.8]} 9. Nf2 {[%clk 0:02:51.7]} 9... Bb7 {[%clk
0:02:07.4]} 10. O-O {[%clk 0:02:52.2]} 10... Be7 {[%clk 0:02:05.1]} 11. Re1
{[%clk 0:02:48.8]} 11... Rb8 {[%clk 0:01:57.9]} 12. c3 {[%clk 0:02:35.3]} 12...
O-O {[%clk 0:01:57.2]} 13. Qc2 {[%clk 0:02:33.8]} 13... Qd6 {[%clk 0:01:54.7]}
14. Bd2 {[%clk 0:02:26.6]} 14... Rfd8 {[%clk 0:01:53.9]} 15. Rad1 {[%clk
0:02:26.9]} 15... h6 {[%clk 0:01:30.2]} 16. Bc1 {[%clk 0:02:26.6]} 16... Qc7
{[%clk 0:01:29.8]} 17. Qe2 {[%clk 0:02:21.3]} 17... b5 {[%clk 0:01:27.1]} 18.
Ng4 {[%clk 0:02:05.3]} 18... b4 {[%clk 0:01:24.3]} 19. Nge5 {[%clk 0:02:04.8]}
19... Nxe5 {[%clk 0:01:19.7]} 20. Nxe5 {[%clk 0:02:04.4]} 20... bxc3 {[%clk
0:01:16.2]} 21. bxc3 {[%clk 0:02:03.5]} 21... Bf6 {[%clk 0:01:05.8]} 22. Qc2
{[%clk 0:00:58.7]} 22... Bxe5 {[%clk 0:00:58]} 23. Rxe5 {[%clk 0:00:57.7]} 23...
c4 {[%clk 0:00:53.1]} 24. d4 {[%clk 0:00:55.4]} 24... Bxg2 {[%clk 0:00:44.2]}
25. Qxg2 {[%clk 0:00:47.9]} 25... Rb1 {[%clk 0:00:39.8]} 26. Rde1 {[%clk
0:00:47.3]} 26... Ne7 {[%clk 0:00:16.9]} 27. Rc5 {[%clk 0:00:42.9]} 27... Qd7
{[%clk 0:00:16.5]} 28. Rxc4 {[%clk 0:00:41.9]} 28... Rc8 {[%clk 0:00:17]} 29.
Rxc8+ {[%clk 0:00:41]} 29... Qxc8 {[%clk 0:00:17.9]} 30. Qc2 {[%clk 0:00:41]}
30... Qb7 {[%clk 0:00:16.9]} 31. Bd2 {[%clk 0:00:40.5]} 31... Rb2 {[%clk
0:00:17.2]} 32. Qd3 {[%clk 0:00:39.8]} 32... Rxa2 {[%clk 0:00:17.7]} 33. Rb1
{[%clk 0:00:35.6]} 33... Rb2 {[%clk 0:00:13]} 34. Rxb2 {[%clk 0:00:34.2]} 34...
Qxb2 {[%clk 0:00:13.9]} 35. Kf2 {[%clk 0:00:30]} 35... a5 {[%clk 0:00:13.6]} 36.
Ke2 {[%clk 0:00:30.1]} 36... a4 {[%clk 0:00:14]} 37. Qa6 {[%clk 0:00:12.1]}
37... a3 {[%clk 0:00:13.6]} 38. Qa8+ {[%clk 0:00:12.2]} 38... Kh7 {[%clk
0:00:13.9]} 39. Qe4+ {[%clk 0:00:12]} 39... Ng6 {[%clk 0:00:10.2]} 40. h4 {[%clk
0:00:02.7]} 40... a2 {[%clk 0:00:04]} 41. h5 {[%clk 0:00:03.6]} 41... a1=Q
{[%clk 0:00:04.6]} 42. hxg6+ {[%clk 0:00:03.5]} 42... fxg6 {[%clk 0:00:05.5]}
43. Qxe6 {[%clk 0:00:03.1]} 43... Qbb1 {[%clk 0:00:05.7]} 44. Qe3 {[%clk
0:00:03.6]} 44... Qf1# {[%clk 0:00:05.5]} 0-1

[Event "Early-Titled-Tuesday-Blitz-October-24-2023"]
[Site "Chess.com"]
[Date "2023.10.24"]
[Round "9"]
[White "blitzking1729"]
[Black "hansen"]
[Result "1/2-1/2"]
[WhiteElo "2808"]
[BlackElo "2936"]
[TimeControl "180+1"]
[EndTime "9:43:14 PDT"]
[Termination "Game drawn by agreement"]

1. d4 {[%clk 0:02:56.9]} 1... Nf6 {[%clk 0:02:42.2]} 2. Bg5 {[%clk 0:02:54.3]}
2... e6 {[%clk 0:02:35.8]} 3. Nd2 {[%clk 0:02:52.4]} 3... h6 {[%clk 0:02:34.9]}
4. Bh4 {[%clk 0:02:52]} 4... c5 {[%clk 0:02:35.5]} 5. e4 {[%clk 0:02:51.9]} 5...
cxd4 {[%clk 0:02:35]} 6. e5 {[%clk 0:02:51.8]} 6... g5 {[%clk 0:02:35.6]} 7. Bg3
{[%clk 0:02:52]} 7... Nd5 {[%clk 0:02:30]} 8. h4 {[%clk 0:02:51.6]} 8... gxh4
{[%clk 0:01:59.3]} 9. Rxh4 {[%clk 0:02:48.5]} 9... Nc6 {[%clk 0:01:58.4]} 10.
Ngf3 {[%clk 0:02:47.9]} 10... Be7 {[%clk 0:01:51]} 11. Re4 {[%clk 0:02:46.5]}
11... Qb6 {[%clk 0:01:33.3]} 12. Nc4 {[%clk 0:02:41.4]} 12... Qb4+ {[%clk
0:01:29.6]} 13. Qd2 {[%clk 0:02:40.5]} 13... b5 {[%clk 0:01:24.1]} 14. a3 {[%clk
0:02:15.5]} 14... Qxd2+ {[%clk 0:01:08.6]} 15. Ncxd2 {[%clk 0:02:16.4]} 15... f5
{[%clk 0:01:08.9]} 16. exf6 {[%clk 0:02:14]} 16... Nxf6 {[%clk 0:01:07.7]} 17.
Rh4 {[%clk 0:02:14.3]} 17... h5 {[%clk 0:00:54.7]} 18. Nxd4 {[%clk 0:01:45.7]}
18... Nxd4 {[%clk 0:00:46.7]} 19. Rxd4 {[%clk 0:01:45]} 19... a6 {[%clk
0:00:47.4]} 20. a4 {[%clk 0:01:36.2]} 20... b4 {[%clk 0:00:27.8]} 21. Nc4 {[%clk
0:01:26.3]} 21... d5 {[%clk 0:00:23.8]} 22. Nb6 {[%clk 0:01:22.4]} 22... Bc5
{[%clk 0:00:24.3]} 23. Nxa8 {[%clk 0:01:16.1]} 23... Bxd4 {[%clk 0:00:24.4]} 24.
O-O-O {[%clk 0:01:14.4]} 24... Bc5 {[%clk 0:00:20.4]} 25. Nc7+ {[%clk
0:01:13.2]} 25... Kf7 {[%clk 0:00:20.8]} 26. Nxa6 {[%clk 0:01:12.2]} 26... Bxa6
{[%clk 0:00:20.1]} 27. Bxa6 {[%clk 0:01:12.9]} 27... Ne4 {[%clk 0:00:21]} 28.
Bh4 {[%clk 0:01:11]} 28... Ra8 {[%clk 0:00:12.4]} 29. Bb5 {[%clk 0:01:10.9]}
29... Nd6 {[%clk 0:00:12.6]} 30. Be2 {[%clk 0:01:06.3]} 30... Kg6 {[%clk
0:00:07.4]} 31. Bd3+ {[%clk 0:01:01.8]} 31... Kf7 {[%clk 0:00:07.4]} 32. b3
{[%clk 0:01:01.7]} 32... Rg8 {[%clk 0:00:03.5]} 33. Bg3 {[%clk 0:00:54.9]} 33...
h4 {[%clk 0:00:04.1]} 34. Bxh4 {[%clk 0:00:53.9]} 34... Rxg2 {[%clk 0:00:04.8]}
35. Bg3 {[%clk 0:00:46.2]} 35... Ne4 {[%clk 0:00:02.4]} 36. Bf1 {[%clk
0:00:43.3]} 36... Rg1 {[%clk 0:00:01.8]} 37. Bh3 {[%clk 0:00:42.5]} 37... Rxd1+
{[%clk 0:00:01.7]} 38. Kxd1 {[%clk 0:00:41.6]} 38... Nxf2+ {[%clk 0:00:02.2]}
39. Bxf2 {[%clk 0:00:41.5]} 39... Bxf2 {[%clk 0:00:03.1]} 40. Ke2 {[%clk
0:00:40.9]} 40... Bb6 {[%clk 0:00:03.1]} 41. Kd3 {[%clk 0:00:40.7]} 41... e5
{[%clk 0:00:02.8]} 42. c3 {[%clk 0:00:36.9]} 42... e4+ {[%clk 0:00:02]} 43. Kc2
{[%clk 0:00:36.4]} 43... bxc3 {[%clk 0:00:02.6]} 44. Kxc3 {[%clk 0:00:37]} 44...
Ke7 {[%clk 0:00:02.9]} 45. b4 {[%clk 0:00:37.4]} 45... Kd6 {[%clk 0:00:03.5]}
46. a5 {[%clk 0:00:37.7]} 46... Bf2 {[%clk 0:00:04.2]} 47. Bg2 {[%clk
0:00:29.3]} 47... Be1+ {[%clk 0:00:04.1]} 48. Kb3 {[%clk 0:00:29.7]} 48... e3
{[%clk 0:00:04.1]} 49. Bf1 {[%clk 0:00:29.1]} 49... Kc6 {[%clk 0:00:04.5]} 50.
b5+ {[%clk 0:00:27.6]} 50... Kc5 {[%clk 0:00:03.9]} 51. a6 {[%clk 0:00:27.6]}
51... Kb6 {[%clk 0:00:03.4]} 52. Kc2 {[%clk 0:00:28.1]} 52... Bh4 {[%clk
0:00:02.9]} 53. Bd3 {[%clk 0:00:28.5]} 53... Be7 {[%clk 0:00:02.8]} 54. Kd1
{[%clk 0:00:28.4]} 54... Bc5 {[%clk 0:00:03.3]} 55. Ke2 {[%clk 0:00:28.9]} 55...
Kc7 {[%clk 0:00:04]} 1/2-1/2

[Event "Early-Titled-Tuesday-Blitz-October-24-2023"]
[Site "Chess.com"]
[Date "2023.10.24"]
[Round "9"]
[White "Ranindu2003"]
[Black "Aygehovit1992"]
[Result "1/2-1/2"]
[WhiteElo "2808"]
[BlackElo "2667"]
[TimeControl "180+1"]
[EndTime "9:43:14 PDT"]
[Termination "Game drawn by repetition"]

1. e4 {[%clk 0:03:00.9]} 1... c5 {[%clk 0:02:59.8]} 2. Nf3 {[%clk 0:03:00.1]}
2... d6 {[%clk 0:03:00.2]} 3. d4 {[%clk 0:03:00.4]} 3... cxd4 {[%clk 0:03:00.7]}
4. Nxd4 {[%clk 0:03:01.3]} 4... Nf6 {[%clk 0:03:00.9]} 5. Nc3 {[%clk 0:03:01.8]}
5... g6 {[%clk 0:03:01.4]} 6. h3 {[%clk 0:02:57.8]} 6... Bg7 {[%clk 0:03:00.5]}
7. g4 {[%clk 0:02:58.4]} 7... O-O {[%clk 0:02:59.7]} 8. Bg2 {[%clk 0:02:56.8]}
8... Nc6 {[%clk 0:02:55.4]} 9. Be3 {[%clk 0:02:56.6]} 9... Bd7 {[%clk
0:02:53.8]} 10. Qd2 {[%clk 0:02:55.3]} 10... Ne5 {[%clk 0:02:52.1]} 11. b3
{[%clk 0:02:54.8]} 11... Rc8 {[%clk 0:02:51.8]} 12. Nde2 {[%clk 0:02:49.8]}
12... Qa5 {[%clk 0:02:31.6]} 13. Rc1 {[%clk 0:02:48]} 13... Nfxg4 {[%clk
0:01:32.1]} 14. hxg4 {[%clk 0:02:46.7]} 14... Rxc3 {[%clk 0:01:31.8]} 15. Bd4
{[%clk 0:02:11.1]} 15... Nd3+ {[%clk 0:01:28.9]} 16. Kd1 {[%clk 0:01:37.2]}
16... Bxd4 {[%clk 0:01:09.6]} 17. Nxd4 {[%clk 0:01:21.5]} 17... Bxg4+ {[%clk
0:00:45.7]} 18. f3 {[%clk 0:01:08.4]} 18... Nxc1 {[%clk 0:00:44.7]} 19. fxg4
{[%clk 0:01:08.6]} 19... Nd3 {[%clk 0:00:23.2]} 20. cxd3 {[%clk 0:00:59.2]}
20... Rfc8 {[%clk 0:00:23]} 21. Ne2 {[%clk 0:00:56.9]} 21... R3c5 {[%clk
0:00:23]} 22. Qh6 {[%clk 0:00:54.4]} 22... e6 {[%clk 0:00:19.7]} 23. g5 {[%clk
0:00:34.2]} 23... Qxa2 {[%clk 0:00:13.4]} 24. Qxh7+ {[%clk 0:00:29.1]} 24... Kf8
{[%clk 0:00:13.2]} 25. Qh8+ {[%clk 0:00:29.8]} 25... Ke7 {[%clk 0:00:10.9]} 26.
Qf6+ {[%clk 0:00:30.4]} 26... Kd7 {[%clk 0:00:11.2]} 27. Qxf7+ {[%clk 0:00:31]}
27... Kc6 {[%clk 0:00:11.5]} 28. e5+ {[%clk 0:00:25.4]} 28... d5 {[%clk
0:00:11.6]} 29. Qxe6+ {[%clk 0:00:25.7]} 29... Kb5 {[%clk 0:00:11.9]} 30. Bxd5
{[%clk 0:00:17.2]} 30... Qa1+ {[%clk 0:00:04.7]} 31. Kd2 {[%clk 0:00:17.6]}
31... Rc2+ {[%clk 0:00:04.6]} 32. Ke3 {[%clk 0:00:18.1]} 32... Qb2 {[%clk
0:00:02.4]} 33. Nd4+ {[%clk 0:00:17.3]} 33... Kb4 {[%clk 0:00:01.9]} 34. Nxc2+
{[%clk 0:00:14.3]} 34... Qxc2 {[%clk 0:00:01.5]} 35. Qd6+ {[%clk 0:00:12.1]}
35... Kc3 {[%clk 0:00:01.5]} 36. Qf6 {[%clk 0:00:03.7]} 36... Qd2+ {[%clk
0:00:01.5]} 37. Ke4 {[%clk 0:00:04.2]} 37... Qxd3+ {[%clk 0:00:01.7]} 38. Kf4
{[%clk 0:00:04]} 38... Qxd5 {[%clk 0:00:02.6]} 39. Rc1+ {[%clk 0:00:04.3]} 39...
Kb2 {[%clk 0:00:02.4]} 40. Rxc8 {[%clk 0:00:05.2]} 40... Qd4+ {[%clk 0:00:02.4]}
41. Kg3 {[%clk 0:00:05.6]} 41... Qg1+ {[%clk 0:00:02.6]} 42. Kh3 {[%clk
0:00:05.6]} 42... Qh1+ {[%clk 0:00:02.7]} 43. Kg3 {[%clk 0:00:05.9]} 43... Qg1+
{[%clk 0:00:02.9]} 44. Kf4 {[%clk 0:00:05.4]} 44... Qd4+ {[%clk 0:00:02.9]} 45.
Kf3 {[%clk 0:00:05.5]} 45... Qd3+ {[%clk 0:00:03.3]} 46. Kf2 {[%clk 0:00:06.1]}
46... Qd4+ {[%clk 0:00:03.4]} 47. Kg3 {[%clk 0:00:06.4]} 47... Qg1+ {[%clk
0:00:03.2]} 1/2-1/2

[Event "Early-Titled-Tuesday-Blitz-October-24-2023"]
[Site "Chess.com"]
[Date "2023.10.24"]
[Round "9"]
[White "vovachesss"]
[Black "topin8"]
[Result "1-0"]
[WhiteElo "2761"]
[BlackElo "2443"]
[TimeControl "180+1"]
[EndTime "9:43:15 PDT"]
[Termination "vovachesss won on time"]

1. d4 {[%clk 0:02:58.4]} 1... Nf6 {[%clk 0:02:59.3]} 2. c4 {[%clk 0:02:58.6]}
2... c5 {[%clk 0:02:58.4]} 3. Nf3 {[%clk 0:02:57.7]} 3... cxd4 {[%clk
0:02:56.3]} 4. Nxd4 {[%clk 0:02:57.6]} 4... Nc6 {[%clk 0:02:55.9]} 5. g3 {[%clk
0:02:57.5]} 5... e5 {[%clk 0:02:21.8]} 6. Nb5 {[%clk 0:02:49.7]} 6... d6 {[%clk
0:02:17.8]} 7. Bg2 {[%clk 0:02:49.6]} 7... Be7 {[%clk 0:02:12.7]} 8. O-O {[%clk
0:02:39.6]} 8... Be6 {[%clk 0:02:05]} 9. b3 {[%clk 0:02:36.9]} 9... a6 {[%clk
0:01:52.6]} 10. N5a3 {[%clk 0:02:35.7]} 10... O-O {[%clk 0:01:52]} 11. Nc3
{[%clk 0:02:35.6]} 11... Qd7 {[%clk 0:01:35.6]} 12. Nc2 {[%clk 0:02:31.3]} 12...
Rab8 {[%clk 0:01:22.7]} 13. a4 {[%clk 0:02:29.7]} 13... Bh3 {[%clk 0:00:55.9]}
14. Ne3 {[%clk 0:02:23.5]} 14... Bxg2 {[%clk 0:00:55.3]} 15. Kxg2 {[%clk
0:02:24.4]} 15... Nd4 {[%clk 0:00:53.8]} 16. Bb2 {[%clk 0:02:19.4]} 16... b5
{[%clk 0:00:49.6]} 17. axb5 {[%clk 0:01:50.9]} 17... axb5 {[%clk 0:00:50.5]} 18.
cxb5 {[%clk 0:01:24]} 18... Nxb5 {[%clk 0:00:51.4]} 19. Ncd5 {[%clk 0:01:22.1]}
19... Nxd5 {[%clk 0:00:17.1]} 20. Nxd5 {[%clk 0:01:13.7]} 20... Bd8 {[%clk
0:00:17.1]} 21. Qd3 {[%clk 0:01:12]} 21... Nc7 {[%clk 0:00:08.1]} 22. Ne3 {[%clk
0:00:57.6]} 22... Qc6+ {[%clk 0:00:07.9]} 23. Kg1 {[%clk 0:00:57.9]} 23... Ne6
{[%clk 0:00:06.9]} 24. Ra6 {[%clk 0:00:53.8]} 24... Qb5 {[%clk 0:00:04.1]} 25.
Rxd6 {[%clk 0:00:46]} 25... Bc7 {[%clk 0:00:03.1]} 26. Rd5 {[%clk 0:00:21.7]}
26... Qxd3 {[%clk 0:00:03.3]} 27. Rxd3 {[%clk 0:00:21.1]} 27... Rb5 {[%clk
0:00:02.9]} 28. Rc1 {[%clk 0:00:19.3]} 28... Rfb8 {[%clk 0:00:03]} 29. Nd5
{[%clk 0:00:14.4]} 29... Rxb3 {[%clk 0:00:03.1]} 30. Rxb3 {[%clk 0:00:12.7]}
30... Rxb3 {[%clk 0:00:04]} 31. Bxe5 {[%clk 0:00:09.1]} 31... Rb5 {[%clk
0:00:01.8]} 32. Nxc7 {[%clk 0:00:02.4]} 32... Rxe5 {[%clk 0:00:02.7]} 33. Nb5
{[%clk 0:00:01.5]} 33... g6 {[%clk 0:00:02.5]} 34. Nd6 {[%clk 0:00:01.7]} 34...
Kg7 {[%clk 0:00:02.5]} 35. Re1 {[%clk 0:00:01.6]} 35... Rd5 {[%clk 0:00:02.5]}
36. Nc4 {[%clk 0:00:02.2]} 36... Nd4 {[%clk 0:00:02.8]} 37. Ne3 {[%clk
0:00:02.9]} 37... Re5 {[%clk 0:00:03.1]} 38. Kf1 {[%clk 0:00:03.8]} 38... Rb5
{[%clk 0:00:03.4]} 39. Rd1 {[%clk 0:00:04.3]} 39... Ne6 {[%clk 0:00:03.5]} 40.
f3 {[%clk 0:00:04.6]} 40... Rb2 {[%clk 0:00:03.5]} 41. Kf2 {[%clk 0:00:05.1]}
41... h5 {[%clk 0:00:03.9]} 42. Nc4 {[%clk 0:00:05.5]} 42... Rc2 {[%clk
0:00:04]} 43. Ne5 {[%clk 0:00:06]} 43... Ra2 {[%clk 0:00:04.3]} 44. Rd7 {[%clk
0:00:06.2]} 44... Ng5 {[%clk 0:00:03.5]} 45. h4 {[%clk 0:00:06.4]} 45... Nh7
{[%clk 0:00:01.7]} 46. Rxf7+ {[%clk 0:00:05.9]} 46... Kh6 {[%clk 0:00:02.5]} 47.
Rb7 {[%clk 0:00:05.6]} 47... g5 {[%clk 0:00:01.4]} 48. Nf7+ {[%clk 0:00:04.4]}
48... Kg6 {[%clk 0:00:01.8]} 49. Ne5+ {[%clk 0:00:04.6]} 49... Kf5 {[%clk
0:00:02]} 50. Rxh7 {[%clk 0:00:04.4]} 50... Kxe5 {[%clk 0:00:01.9]} 51. Rxh5
{[%clk 0:00:05.1]} 1-0

[Event "Early-Titled-Tuesday-Blitz-October-24-2023"]
[Site "Chess.com"]
[Date "2023.10.24"]
[Round "9"]
[White "GHANDEEVAM2003"]
[Black "MagnusCarlsen"]
[Result "0-1"]
[WhiteElo "3041"]
[BlackElo "3274"]
[TimeControl "180+1"]
[EndTime "9:43:17 PDT"]
[Termination "MagnusCarlsen won by resignation"]

1. g3 {[%clk 0:03:00.9]} 1... g6 {[%clk 0:02:56.7]} 2. Bg2 {[%clk 0:03:00.2]}
2... Bg7 {[%clk 0:02:57.4]} 3. Nf3 {[%clk 0:03:00]} 3... b6 {[%clk 0:02:55.3]}
4. e4 {[%clk 0:02:56.4]} 4... Bb7 {[%clk 0:02:55.1]} 5. d3 {[%clk 0:02:55]} 5...
d5 {[%clk 0:02:53.8]} 6. exd5 {[%clk 0:02:48.8]} 6... Qxd5 {[%clk 0:02:49.9]} 7.
O-O {[%clk 0:02:46.6]} 7... Qd8 {[%clk 0:02:46.8]} 8. Re1 {[%clk 0:02:42]} 8...
Nf6 {[%clk 0:02:46.9]} 9. Nc3 {[%clk 0:02:40.9]} 9... O-O {[%clk 0:02:47]} 10.
Ne5 {[%clk 0:02:39.5]} 10... Qc8 {[%clk 0:02:45.3]} 11. Bf4 {[%clk 0:02:32.7]}
11... Re8 {[%clk 0:02:41]} 12. Bxb7 {[%clk 0:02:24]} 12... Qxb7 {[%clk
0:02:36.1]} 13. Qf3 {[%clk 0:02:24.9]} 13... Qxf3 {[%clk 0:02:36.1]} 14. Nxf3
{[%clk 0:02:25.8]} 14... c5 {[%clk 0:02:36.2]} 15. Nb5 {[%clk 0:02:21]} 15...
Nd5 {[%clk 0:02:32.8]} 16. Be5 {[%clk 0:02:13]} 16... Nc6 {[%clk 0:02:26]} 17.
Bxg7 {[%clk 0:01:57.8]} 17... Kxg7 {[%clk 0:02:26.1]} 18. Ne5 {[%clk 0:01:43.3]}
18... a6 {[%clk 0:02:05.9]} 19. Nxc6 {[%clk 0:01:39.4]} 19... axb5 {[%clk
0:02:05.5]} 20. c4 {[%clk 0:01:40.1]} 20... bxc4 {[%clk 0:02:01.8]} 21. dxc4
{[%clk 0:01:41]} 21... Nb4 {[%clk 0:02:02.4]} 22. Nxb4 {[%clk 0:01:39.5]} 22...
cxb4 {[%clk 0:02:03.3]} 23. Re5 {[%clk 0:01:24.3]} 23... Rac8 {[%clk 0:01:46.7]}
24. b3 {[%clk 0:01:03.5]} 24... Rc5 {[%clk 0:01:46.7]} 25. Re2 {[%clk
0:01:04.2]} 25... Kf6 {[%clk 0:01:39.8]} 26. Rd1 {[%clk 0:01:04]} 26... b5
{[%clk 0:01:35.7]} 27. cxb5 {[%clk 0:00:59]} 27... Rxb5 {[%clk 0:01:36.6]} 28.
Rd7 {[%clk 0:00:55]} 28... g5 {[%clk 0:01:36.7]} 29. g4 {[%clk 0:00:51.2]} 29...
e6 {[%clk 0:01:26.7]} 30. Kg2 {[%clk 0:00:45.2]} 30... Kg6 {[%clk 0:01:19]} 31.
Rc2 {[%clk 0:00:42.5]} 31... Rf8 {[%clk 0:01:14.1]} 32. h3 {[%clk 0:00:38.4]}
32... h5 {[%clk 0:01:12.6]} 33. Rcc7 {[%clk 0:00:36.6]} 33... hxg4 {[%clk
0:01:06.1]} 34. hxg4 {[%clk 0:00:37.5]} 34... Ra5 {[%clk 0:01:06.4]} 35. Ra7
{[%clk 0:00:35.9]} 35... Rxa7 {[%clk 0:01:06.3]} 36. Rxa7 {[%clk 0:00:36.8]}
36... Rd8 {[%clk 0:01:06.5]} 37. Ra4 {[%clk 0:00:30.1]} 37... Rd4 {[%clk
0:01:02.7]} 38. f3 {[%clk 0:00:28]} 38... f5 {[%clk 0:00:59.7]} 39. Ra6 {[%clk
0:00:17.4]} 39... Rd2+ {[%clk 0:00:59.6]} 40. Kh3 {[%clk 0:00:11.8]} 40... Kf7
{[%clk 0:00:38]} 41. gxf5 {[%clk 0:00:08.5]} 41... exf5 {[%clk 0:00:38.9]} 42.
Kg3 {[%clk 0:00:08.3]} 42... Rc2 {[%clk 0:00:33]} 43. Ra4 {[%clk 0:00:06.2]}
43... Kg6 {[%clk 0:00:30.7]} 44. Rxb4 {[%clk 0:00:05.7]} 44... f4+ {[%clk
0:00:31.1]} 45. Kh3 {[%clk 0:00:04.7]} 45... Rf2 {[%clk 0:00:30.4]} 46. Rb8
{[%clk 0:00:03.3]} 46... Rxf3+ {[%clk 0:00:30.4]} 47. Kg2 {[%clk 0:00:04.2]}
47... Rc3 {[%clk 0:00:29.9]} 48. a4 {[%clk 0:00:04.3]} 48... Kf5 {[%clk
0:00:29.1]} 49. a5 {[%clk 0:00:04.9]} 49... Rc2+ {[%clk 0:00:29.5]} 50. Kf1
{[%clk 0:00:04.7]} 50... Ra2 {[%clk 0:00:29.8]} 51. b4 {[%clk 0:00:04.9]} 51...
f3 {[%clk 0:00:27.4]} 52. b5 {[%clk 0:00:02.8]} 52... Rxa5 {[%clk 0:00:26.6]}
53. b6 {[%clk 0:00:03.5]} 53... Rb5 {[%clk 0:00:25.5]} 54. Kf2 {[%clk
0:00:03.6]} 54... Kg4 {[%clk 0:00:24.3]} 55. Ke3 {[%clk 0:00:03]} 55... Kg3
{[%clk 0:00:24]} 56. Rg8 {[%clk 0:00:02]} 56... g4 {[%clk 0:00:23.9]} 57. Rg6
{[%clk 0:00:02.7]} 57... f2 {[%clk 0:00:23.5]} 58. Rf6 {[%clk 0:00:02.8]} 58...
Rxb6 {[%clk 0:00:23]} 0-1